[Event "10th Cesme Open-A 2024"]
[Site "Cesme"]
[Date "2024.06.25"]
[Round "3"]
[White "Tarlabasi, Emirhan"]
[Black "Gholami, Aryan"]
[Result "1-0"]
[ECO "E15"]
[WhiteElo "2303"]
[BlackElo "2481"]
[Annotator "TA"]
[PlyCount "173"]
[EventDate "2024.06.23"]
[EventType "swiss"]
[EventCountry "TUR"]
[SourceTitle "playchess.com"]
[Source "ChessBase"]
[SourceQuality "1"]
[TimeControl "5400+30"]

{[%evp 78,173,58,-2,40,-68,-61,-60,-52,-40,-43,-61,-73,-99,4,1,103,103,130,132,162,176,155,150,383,97,219,103,203,90,90,89,89,82,89,82,82,82,82,82,82,82,89,89,89,89,89,89,89,89,89,89,89,89,89,89,95,95,128,100,114,100,152,87,222,229,233,233,258,263,271,271,235,235,695,653,565,455,904,885,1106,1098,1030,1030,29958,29956,5226,656,29986,29987,29987,29988,29991,29992,29992,29993,29995,29996]} 1. d4 {[%emt 0:03:00]} Nf6 {[%emt 0:02:00]} 2. c4 {[%emt 0:00:30]} e6 {[%emt 0:00:30]} 3. Nf3 {[%emt 0:01:30]} b6 {[%emt 0:00:00]} 4. g3 {[%emt 0:00:30]} Ba6 {[%emt 0:01:00]} 5. b3 {[%emt 0:01:30]} d5 {[%emt 0:00:30]} 6. Bg2 {[%emt 0:02:30]} Bb4+ {[%emt 0:01:30]} 7. Bd2 {[%emt 0:02:30]} Be7 {[%emt 0:00:30]} 8. cxd5 {[%emt 0:04:30]} exd5 {[%emt 0:00:30]} 9. Nc3 {[%emt 0:04:30]} O-O {[%emt 0:03:30]} 10. O-O {[%emt 0:00:30]} Re8 {[%emt 0:04:30]} 11. Re1 {[%emt 0:05:30] E15: Queen's Indian: 4 g3 sidelines, 4 g3 Ba6 and 4 g3 Bb7 early deviations.} c5 {[%emt 0:04:30]} 12. Bg5 {[%emt 0:07:30]} Nc6 {[%emt 0:10:30]} 13. Rc1 {[%emt 0:04:30]} Rc8 {[%emt 0:15:30]} 14. dxc5 {[%emt 0:06:30]} d4 {[%emt 0:01:30]} 15. Na4 {[%emt 0:03:30]} h6 $146 {[%emt 0:12:30]} ({Predecessor:} 15... b5 16. Nb2 Ne4 17. Bxe7 Rxe7 18. Qd3 Qd5 19. Nd2 f5 20. e3 Rce8 21. exd4 Nb4 {1-0 Grabliauskas,V (2404)-Bernadskiy,V (2438) Lvov Vasylyshyn Memorial GM 2010 (5)}) 16. Bxf6 {[%emt 0:01:30]} Bxf6 {[%emt 0:00:30]} 17. Qd2 {[%emt 0:04:30]} Bb5 {[%emt 0:02:30]} 18. Nb2 {[%emt 0:03:30]} bxc5 {[%emt 0:01:30]} 19. Rxc5 {[%emt 0:02:30]} Qb6 {[%emt 0:01:30]} 20. Rcc1 {[%emt 0:05:30]} Be7 {[%emt 0:02:30]} 21. Nd3 {[%emt 0:03:30]} Ba3 {[%emt 0:01:30]} 22. Rcd1 {[%emt 0:07:30]} Rcd8 {[%emt 0:04:30]} 23. Rb1 {[%emt 0:08:02]} a5 {[%emt 0:03:30]} 24. Red1 {[%emt 0:02:41]} Bb4 {[%emt 0:06:53]} 25. Qc2 {[%emt 0:02:21]} Bc3 {[%emt 0:02:13]} 26. a3 {[%emt 0:02:30]} Rc8 {[%emt 0:01:12]} 27. Qa2 {[%emt 0:02:08]} Qa6 {[%emt 0:02:05]} 28. Bf1 {[%emt 0:00:29]} Qa7 {[%emt 0:00:43]} 29. Rbc1 {[%emt 0:02:26]} Ne7 {[%emt 0:02:20]} 30. Nde5 {[%emt 0:02:57]} f6 {[%emt 0:03:41]} 31. Nc4 {[%emt 0:03:08]} Nf5 {[%emt 0:02:27]} 32. Nxa5 {[%emt 0:01:33]} Nd6 {[%emt 0:01:54]} 33. b4+ {[%emt 0:00:50]} Kh8 {[%emt 0:00:02]} 34. Nb3 {[%emt 0:00:14]} Bc4 {[%emt 0:01:11]} 35. Qb1 {[%emt 0:00:06]} Nb5 {[%emt 0:00:09]} 36. Nbd2 {[%emt 0:00:43]} Nxa3 {[%emt 0:01:13]} 37. Qf5 {[%emt 0:00:19]} Be6 {[%emt 0:00:21]} 38. Qf4 {[%emt 0:00:37]} Bd5 {[%emt 0:01:47]} 39. Bh3 {[%emt 0:01:17]} Rcd8 {[%emt 0:00:32]} 40. Bf1 {[%emt 0:00:06]} ({White should play} 40. Bf5 $1 $14) 40... Qb6 {[%emt 0:02:17]} 41. Nb1 {[%emt 0:00:24]} (41. e4 $14 Bg8 42. b5) 41... Nxb1 $1 $15 {[%emt 0:01:03]} 42. Rxb1 {[%emt 0:00:01]} Be4 {[%emt 0:00:12]} (42... Bxb4 $2 43. Rxd4 Qa7 44. Rbxb4 $18 (44. Rdxb4 Qf7 $18)) 43. Rbc1 {[%emt 0:00:30]} Qxb4 {[%emt 0:00:59]} (43... g5 $5 44. Qg4 $8 Qxb4 $15 (44... Bxb4 45. Qh5 $14)) 44. h4 {[%emt 0:01:01]} Qa5 {[%emt 0:00:54]} 45. Bg2 {[%emt 0:00:32]} Bg6 {[%emt 0:00:27]} ({Black should try} 45... Bb2 $1 $17 {[%cal Od4d3] Hoping for ...d3!} 46. Rc4 Bg6) 46. Nxd4 $11 {[%emt 0:00:30]} Bb2 {[%emt 0:00:09]} (46... Rxd4 $11 {remains equal.} 47. Rxd4 Bxd4 48. Qxd4 Rxe2) 47. Nc6 $1 $16 {[%emt 0:00:26]} Rxd1+ {[%emt 0:01:35]} 48. Rxd1 {[%emt 0:00:30]} Qa3 {[%emt 0:00:08]} 49. Qg4 {[%emt 0:00:06]} Bf7 {[%emt 0:00:30]} 50. Rd7 {[%emt 0:00:30]} h5 $2 {[%emt 0:00:30]} (50... f5 $16 51. Qf4 (51. Qxf5 Be6 $14) 51... Be6) 51. Qf3 $2 {[%emt 0:00:30]} (51. Qf5 $18 {is the precise move to win. White wants to mate with Nd8.} g6 52. Qb5) 51... Bg6 {[%emt 0:00:30]} (51... Qxf3 $16 {was necessary.} 52. Bxf3 Kg8) 52. Rd5 {[%emt 0:00:30]} (52. e3 $18) 52... Kg8 {[%emt 0:00:30]} (52... Qxf3 $16 53. Bxf3 f5) 53. Qxa3 {[%emt 0:00:30]} (53. e3 $18 {has better winning chances.}) 53... Bxa3 $16 {[%emt 0:00:30]} 54. Bf3 {[%emt 0:00:30]} Bf7 {[%emt 0:00:30]} 55. Ra5 {[%emt 0:00:30]} Bf8 {[%emt 0:00:30]} 56. Nd4 {[%emt 0:00:30]} Rd8 {[%emt 0:00:30]} 57. e3 {[%emt 0:00:30]} g6 {[%emt 0:00:30]} 58. Kg2 {[%emt 0:00:30]} Rd7 {[%emt 0:00:30]} 59. Rb5 {[%emt 0:00:30]} Ra7 {[%emt 0:00:30]} 60. Bd5 {[%emt 0:00:30]} Bxd5+ {[%emt 0:00:30]} 61. Rxd5 {[%emt 0:00:30]} Kf7 {[%emt 0:00:30]} 62. Rb5 {[%emt 0:00:30]} Be7 {[%emt 0:00:30]} 63. Kf3 {[%emt 0:00:30]} Rc7 {[%emt 0:00:30]} 64. Ke4 {[%emt 0:00:30]} Ra7 {[%emt 0:00:30]} 65. Kd5 {[%emt 0:00:30]} Ra2 {[%emt 0:00:30]} 66. Rb7 {[%emt 0:00:30]} Ra5+ {[%emt 0:00:30]} (66... Rxf2 $2 67. Nc6 $18) 67. Ke4 {[%emt 0:00:30]} Rc5 {[%emt 0:00:30]} 68. Ra7 {[%emt 0:00:30]} Re5+ {[%emt 0:00:30]} 69. Kd3 {[%emt 0:00:30]} Rc5 {[%emt 0:00:30]} (69... Rd5 $142) 70. e4 {[%emt 0:00:30]} (70. Ne2 $142) 70... Ke8 {[%emt 0:00:30]} (70... Rc1 $16 {is a better defense.}) 71. Ne6 $18 {[%emt 0:00:30]} Rc6 {[%emt 0:00:30]} 72. Nc7+ $1 {[%emt 0:00:30]} Kf8 {[%emt 0:00:30]} 73. Nd5 {[%emt 0:00:33]} Bc5 {[%emt 0:00:00] [#]} 74. Ra2 $1 {[%emt 0:00:34]} Kf7 {[%emt 0:00:00] [#]} 75. Rc2 $1 {[%emt 0:00:05]} g5 $2 {[%emt 0:00:05]} (75... f5 76. e5 Ke6 77. Nf4+ Kxe5 78. Nxg6+ Kd6) 76. hxg5 $18 {[%emt 0:01:15]} fxg5 {[%emt 0:00:02]} 77. f4 {[%emt 0:00:30]} h4 {[%emt 0:00:56]} (77... gxf4 $142 78. gxf4 Ke6) 78. gxh4 $18 {[%emt 0:00:27]} (78. fxg5 hxg3 79. Nf4 Rd6+ 80. Ke2 Bd4 $14) 78... gxh4 {[%emt 0:00:16]} 79. e5 {[%emt 0:00:36]} h3 {[%emt 0:00:07]} 80. f5 {[%emt 0:00:28]} Rc8 {[%emt 0:01:08]} 81. e6+ {[%emt 0:00:35]} Kg7 {[%emt 0:00:02]} 82. Ke4 {[%emt 0:00:28]} (82. f6+ $142 Kg6 83. f7) 82... Bg1 {[%emt 0:01:01]} 83. f6+ {[%emt 0:00:40]} (83. Rxc8 h2 84. f6+ Kh7 $11) 83... Kh7 {[%emt 0:00:17]} 84. f7 {[%emt 0:00:18]} ({Stronger than} 84. Rxc8 h2 85. Nf4 (85. Rc7+ Kh6 $15) 85... h1=Q+ 86. Kf5 Qb7 $11) 84... Rxc2 {[%emt 0:01:41]} 85. f8=Q {[%emt 0:00:10]} ({And not} 85. f8=R Re2+ 86. Kf5 Bd4 87. Rf7+ Kh6 $11) 85... Re2+ {[%emt 0:00:12]} 86. Kf5 {[%emt 0:01:06]} Bd4 {[%emt 0:00:30]} 87. Qf7+ {[%emt 0:00:00]} 1-0

[Event "10th Cesme Open-A 2024"]
[Site "Cesme"]
[Date "2024.06.25"]
[Round "3"]
[White "Koksal, Ege"]
[Black "Yermolinsky, Alex"]
[Result "1/2-1/2"]
[ECO "D38"]
[WhiteElo "2297"]
[BlackElo "2421"]
[Annotator "RC"]
[PlyCount "74"]
[EventDate "2024.06.23"]
[EventType "swiss"]
[EventCountry "TUR"]
[SourceTitle "playchess.com"]
[Source "ChessBase"]
[SourceQuality "1"]
[TimeControl "5400+30"]

1. d4 {[%emt 0:07:00]} Nf6 {[%emt 0:01:00]} 2. Nf3 {[%emt 0:01:30]} e6 {[%emt 0:00:00]} 3. c4 {[%emt 0:00:30]} d5 {[%emt 0:01:00]} 4. Nc3 {[%emt 0:04:30]} Bb4 {[%emt 0:00:30]} 5. Bg5 {[%emt 0:06:30]} h6 {[%emt 0:03:30]} 6. Bxf6 {[%emt 0:00:30]} Qxf6 {[%emt 0:00:30]} 7. Rc1 {[%emt 0:01:30]} dxc4 {[%emt 0:09:30]} 8. Qa4+ {[%emt 0:05:30]} Nc6 {[%emt 0:00:30]} 9. e3 {[%emt 0:02:30]} Bd7 {[%emt 0:05:30]} 10. Qc2 {[%emt 0:00:30]} b5 {[%emt 0:06:30]} 11. Be2 {[%emt 0:00:00]} O-O {[%emt 0:00:30]} 12. O-O {[%emt 0:00:00]} a6 {[%emt 0:03:30]} 13. b3 {[%emt 0:00:00]} cxb3 {[%emt 0:01:30]} 14. axb3 {[%emt 0:00:00]} Ba3 {[%emt 0:09:30]} 15. Ra1 {[%emt 0:01:30]} Bd6 {[%emt 0:01:30]} 16. Qd2 {[%emt 0:09:30]} Qe7 {[%emt 0:02:30]} 17. Ne4 {[%emt 0:00:30]} Rfd8 {[%emt 0:03:30]} 18. Rfc1 {[%emt 0:01:30]} Be8 {[%emt 0:06:30]} 19. Qc3 {[%emt 0:19:30]} Ba3 {[%emt 0:05:30]} 20. Rc2 {[%emt 0:04:30]} Nb4 {[%emt 0:03:30]} 21. Rd2 {[%emt 0:00:00]} Nd5 {[%emt 0:00:00]} 22. Qc2 {[%emt 0:02:00]} a5 {[%emt 0:03:00]} 23. Ne5 {[%emt 0:01:30]} a4 {[%emt 0:03:30]} 24. bxa4 {[%emt 0:02:30]} Bb4 {[%emt 0:00:30]} 25. Rd3 {[%emt 0:04:30]} Bd6 {[%emt 0:04:30]} 26. Nc6 {[%emt 0:01:30]} Bxc6 {[%emt 0:00:30]} 27. Qxc6 {[%emt 0:00:30]} bxa4 {[%emt 0:06:34]} 28. Rxa4 {[%emt 0:03:30]} Rxa4 {[%emt 0:00:30]} 29. Qxa4 {[%emt 0:00:30]} Bxh2+ {[%emt 0:00:00]} 30. Kxh2 {[%emt 0:00:30]} Qh4+ {[%emt 0:00:12]} 31. Kg1 {[%emt 0:00:30]} Qxe4 {[%emt 0:00:14]} 32. Qd1 {[%emt 0:01:38]} Ra8 {[%emt 0:01:30]} 33. Bf3 {[%emt 0:00:52]} Qh4 {[%emt 0:00:33]} 34. g3 {[%emt 0:00:11]} Qf6 {[%emt 0:00:08]} 35. Kg2 {[%emt 0:00:49]} Qg6 {[%emt 0:01:26]} 36. Rd2 {[%emt 0:01:32]} Rb8 {[%emt 0:02:05]} 37. Rc2 {[%emt 0:02:23]} Qg5 {[%emt 0:03:00]} 1/2-1/2

[Event "10th Cesme Open-A 2024"]
[Site "Cesme"]
[Date "2024.06.25"]
[Round "3"]
[White "Erten, Kerem"]
[Black "Cakiroglu, Metin"]
[Result "1-0"]
[ECO "B30"]
[WhiteElo "2277"]
[BlackElo "2039"]
[Annotator "RC"]
[PlyCount "78"]
[EventDate "2024.06.23"]
[EventType "swiss"]
[EventCountry "TUR"]
[SourceTitle "playchess.com"]
[Source "ChessBase"]
[SourceQuality "1"]
[TimeControl "5400+30"]

1. e4 {[%emt 0:01:00]} c5 {[%emt 0:03:00]} 2. Nf3 {[%emt 0:00:30]} Nc6 {[%emt 0:00:30]} 3. Bb5 {[%emt 0:00:00]} Nd4 {[%emt 0:00:00]} 4. Nxd4 {[%emt 0:01:00]} cxd4 {[%emt 0:03:00]} 5. c3 {[%emt 0:01:30]} Nf6 {[%emt 0:08:30]} 6. d3 {[%emt 0:03:30]} Qa5 {[%emt 0:12:30]} 7. Ba4 {[%emt 0:02:30]} e6 {[%emt 0:02:30]} 8. O-O {[%emt 0:02:30]} dxc3 {[%emt 0:00:00]} 9. Nxc3 {[%emt 0:10:30]} Be7 {[%emt 0:01:00]} 10. Bd2 {[%emt 0:05:30]} Qh5 {[%emt 0:01:30]} 11. Qxh5 {[%emt 0:04:30]} Nxh5 {[%emt 0:03:30]} 12. g4 {[%emt 0:10:30]} Nf6 {[%emt 0:01:30]} 13. g5 {[%emt 0:00:30]} Nh5 {[%emt 0:02:30]} 14. Bd1 {[%emt 0:03:30]} g6 {[%emt 0:00:00]} 15. Bxh5 {[%emt 0:01:30]} gxh5 {[%emt 0:00:00]} 16. Nb5 {[%emt 0:09:30]} Kd8 {[%emt 0:05:30]} 17. Be3 {[%emt 0:03:30]} b6 {[%emt 0:07:30]} 18. Rfc1 {[%emt 0:04:30]} Rg8 {[%emt 0:02:30]} 19. Kh1 {[%emt 0:04:30]} Bb7 {[%emt 0:02:30]} 20. h4 {[%emt 0:04:30]} Bc6 {[%emt 0:09:30]} 21. a4 {[%emt 0:00:30]} Kc8 {[%emt 0:11:30]} 22. a5 {[%emt 0:03:30]} Kb7 {[%emt 0:03:59]} 23. a6+ {[%emt 0:01:30]} Kc8 {[%emt 0:00:15]} 24. Kh2 {[%emt 0:02:34]} e5 {[%emt 0:02:27]} 25. f4 {[%emt 0:03:08]} Kb8 {[%emt 0:00:49]} 26. Nc3 {[%emt 0:00:41]} f6 {[%emt 0:01:15]} 27. fxe5 {[%emt 0:01:56]} fxe5 {[%emt 0:01:17]} 28. Rf1 {[%emt 0:01:16]} Kc7 {[%emt 0:01:45]} 29. Rf7 {[%emt 0:03:41]} Bb4 {[%emt 0:00:23]} 30. Raf1 {[%emt 0:01:12]} Raf8 {[%emt 0:02:01]} 31. Nd5+ {[%emt 0:02:13]} Bxd5 {[%emt 0:00:30]} 32. exd5 {[%emt 0:01:11]} Be7 {[%emt 0:08:04]} 33. R1f2 {[%emt 0:03:18]} Kd6 {[%emt 0:02:00]} 34. Rxh7 {[%emt 0:00:15]} Rxf2+ {[%emt 0:00:28]} 35. Bxf2 {[%emt 0:00:01]} Bd8 {[%emt 0:01:59]} 36. Bg3 {[%emt 0:02:01]} Kxd5 {[%emt 0:01:09]} 37. Rxd7+ {[%emt 0:00:40]} Kc6 {[%emt 0:00:15]} 38. Rh7 {[%emt 0:00:11]} Kb5 {[%emt 0:01:43]} 39. Rxa7 {[%emt 0:00:32]} Rh8 {[%emt 0:00:14]} 1-0

[Event "10th Cesme Open-A 2024"]
[Site "Cesme"]
[Date "2024.06.25"]
[Round "3"]
[White "Barrish, Daniel"]
[Black "Durak, Can"]
[Result "1-0"]
[ECO "D35"]
[WhiteElo "2256"]
[BlackElo "2442"]
[Annotator "TA"]
[PlyCount "51"]
[EventDate "2024.06.23"]
[EventType "swiss"]
[EventCountry "TUR"]
[SourceTitle "playchess.com"]
[Source "ChessBase"]
[SourceQuality "1"]
[TimeControl "5400+30"]

{[%evp 12,51,31,31,30,33,33,0,0,3,8,10,54,58,75,0,0,0,-6,0,-2,-52,12,0,0,0,0,-6,0,-44,-16,-60,-64,-60,-60,-74,-47,-39,-16,-20,683,677]} 1. d4 {[%emt 0:15:00]} d5 {[%emt 0:01:00]} 2. c4 {[%emt 0:00:30]} e6 {[%emt 0:00:30]} 3. Nc3 {[%emt 0:00:30]} Nf6 {[%emt 0:00:30]} 4. cxd5 {[%emt 0:00:30]} exd5 {[%emt 0:00:30]} 5. Bg5 {[%emt 0:00:00][%cal Bc1g5,Bg5h4,Bh4g3][%mdl 32]} Bb4 {[%emt 0:00:00]} 6. e3 {[%emt 0:00:00]} h6 {[%emt 0:00:00]} 7. Bh4 {[%emt 0:00:30]} g5 {[%emt 0:00:00]} 8. Bg3 {[%emt 0:00:00]} h5 {[%emt 0:00:00]} 9. h4 {[%emt 0:00:00]} Ne4 {[%emt 0:00:30] The position is equal.} 10. Nge2 {[%emt 0:00:30]} Bg4 {[%emt 0:00:30] [#] ...Nxc3 is the strong threat.} 11. Qb3 {[%emt 0:18:30]} Nxg3 {[%emt 0:00:30]} 12. Nxg3 {[%emt 0:02:30]} Nc6 {[%emt 0:00:30]} 13. hxg5 {[%emt 0:05:30]} (13. Nge2 $16) 13... Qxg5 $11 {[%emt 0:00:30]} 14. Bb5 {[%emt 0:01:30]} Bxc3+ {[%emt 0:00:30]} 15. Qxc3 {[%emt 0:01:30]} Rh6 {[%emt 0:00:30]} 16. Be2 {[%emt 0:05:30]} (16. Ne2 $11) 16... h4 {[%emt 0:08:30]} (16... Bxe2 $15 17. Nxe2 O-O-O (17... Qxg2 18. Rg1 $11)) 17. Bxg4 $1 {[%emt 0:00:30]} Qxg4 {[%emt 0:01:30]} 18. Qd3 {[%emt 0:05:30]} Ne7 {[%emt 0:07:30]} 19. Qb5+ {[%emt 0:01:30]} Kf8 {[%emt 0:00:30]} 20. Qxb7 {[%emt 0:06:30]} Rc8 {[%emt 0:00:30] [#] And now ...Rb6 would win.} 21. Qb5 {[%emt 0:02:30]} Qg5 {[%emt 0:03:30]} 22. Nf1 {[%emt 0:04:30]} Qxg2 {[%emt 0:02:30]} 23. Rh2 {[%emt 0:00:00]} Qg5 {[%emt 0:00:30][%cal Oc7c5]} 24. Rc1 {[%emt 0:01:00]} Rb6 {[%emt 0:01:30]} 25. Qd7 {[%emt 0:01:30]} Rxb2 $2 {[%emt 0:01:30][%mdl 8192]} (25... f5 $11) 26. f4 {[%emt 0:00:30] Weighted Error Value: White=0.18 (very precise) /Black=0.45.  Loses game:     	---       	Black=1      Mistake:       	White=2     	Black=1      Inaccurate:     	White=3     	Black=2      OK:         	White=6     	Black=8      Best:        	White=1     	Black=1      Strong:       	White=1     	---} (26. Rxc7 $2 {too greedy.} Rxc7 27. Qd8+ Kg7 28. Qxc7 Qg6 $19 (28... Rxa2 $2 29. f4 $19)) 1-0

[Event "10th Cesme Open-A 2024"]
[Site "Cesme"]
[Date "2024.06.25"]
[Round "3"]
[White "Ozcan, Kaan"]
[Black "Samani, Yamac"]
[Result "1-0"]
[ECO "E42"]
[WhiteElo "2227"]
[BlackElo "2360"]
[Annotator "RC"]
[PlyCount "79"]
[EventDate "2024.06.23"]
[EventType "swiss"]
[EventCountry "TUR"]
[SourceTitle "playchess.com"]
[Source "ChessBase"]
[SourceQuality "1"]
[TimeControl "5400+30"]

1. d4 {[%emt 0:01:00]} Nf6 {[%emt 0:01:00]} 2. c4 {[%emt 0:00:00]} e6 {[%emt 0:00:30]} 3. Nc3 {[%emt 0:00:00]} Bb4 {[%emt 0:00:00]} 4. e3 {[%emt 0:00:30]} O-O {[%emt 0:01:00]} 5. Bd3 {[%emt 0:00:30]} c5 {[%emt 0:00:30]} 6. Nge2 {[%emt 0:00:30]} cxd4 {[%emt 0:01:30]} 7. exd4 {[%emt 0:00:30]} d5 {[%emt 0:00:30]} 8. a3 {[%emt 0:01:30]} Bxc3+ {[%emt 0:03:30]} 9. Nxc3 {[%emt 0:03:30]} dxc4 {[%emt 0:00:30]} 10. Bxc4 {[%emt 0:00:30]} Nc6 {[%emt 0:00:30]} 11. Be3 {[%emt 0:01:30]} b6 {[%emt 0:02:30]} 12. O-O {[%emt 0:02:30]} Bb7 {[%emt 0:02:30]} 13. Qd2 {[%emt 0:03:30]} Rc8 {[%emt 0:04:30]} 14. Ba2 {[%emt 0:02:30]} Ne7 {[%emt 0:10:30]} 15. Bg5 {[%emt 0:04:30]} Qd6 {[%emt 0:15:30]} 16. Bxf6 {[%emt 0:08:30]} gxf6 {[%emt 0:00:30]} 17. f3 {[%emt 0:01:30]} Rfd8 {[%emt 0:08:30]} 18. Rad1 {[%emt 0:07:30]} f5 {[%emt 0:06:30]} 19. Qg5+ {[%emt 0:03:30]} Ng6 {[%emt 0:14:30]} 20. d5 {[%emt 0:04:30]} Qf4 {[%emt 0:06:56]} 21. Qf6 {[%emt 0:10:30]} e5 {[%emt 0:03:41]} 22. d6 {[%emt 0:03:30]} Rd7 {[%emt 0:00:13]} 23. Rfe1 {[%emt 0:04:30]} Re8 {[%emt 0:06:31]} 24. Nd5 {[%emt 0:04:30]} Bxd5 {[%emt 0:02:14]} 25. Bxd5 {[%emt 0:00:00]} Rf8 {[%emt 0:06:37]} 26. b4 {[%emt 0:04:00]} Qh6 {[%emt 0:01:36]} 27. Bc6 {[%emt 0:01:30]} Rdd8 {[%emt 0:00:06]} 28. Rxe5 {[%emt 0:02:30]} Qf4 {[%emt 0:00:24]} 29. Ree1 {[%emt 0:00:30]} a5 {[%emt 0:00:42]} 30. Rd4 {[%emt 0:01:30]} Qh6 {[%emt 0:00:09]} 31. Qxf5 {[%emt 0:01:30]} Qg7 {[%emt 0:00:30]} 32. Red1 {[%emt 0:00:30]} axb4 {[%emt 0:00:30]} 33. axb4 {[%emt 0:00:00]} Kh8 {[%emt 0:00:00]} 34. b5 {[%emt 0:00:00]} Rg8 {[%emt 0:00:08]} 35. Rg4 {[%emt 0:00:30]} Qc3 {[%emt 0:00:01]} 36. d7 {[%emt 0:01:30]} Rg7 {[%emt 0:00:55]} 37. Qe4 {[%emt 0:00:30]} f5 {[%emt 0:00:30]} 38. Qxf5 {[%emt 0:00:30]} Qe3+ {[%emt 0:00:13]} 39. Kh1 {[%emt 0:01:30]} Qe2 {[%emt 0:00:33]} 40. Rg1 {[%emt 0:01:30]} 1-0

[Event "10th Cesme Open-A 2024"]
[Site "Cesme"]
[Date "2024.06.25"]
[Round "3"]
[White "Ozdemir, Serhan Berat"]
[Black "Pacher, Milan"]
[Result "1/2-1/2"]
[ECO "C67"]
[WhiteElo "2225"]
[BlackElo "2387"]
[Annotator "RC"]
[PlyCount "86"]
[EventDate "2024.06.23"]
[EventType "swiss"]
[EventCountry "TUR"]
[SourceTitle "playchess.com"]
[Source "ChessBase"]
[SourceQuality "1"]
[TimeControl "5400+30"]

1. e4 {[%emt 0:03:00]} e5 {[%emt 0:01:00]} 2. Nf3 {[%emt 0:00:30]} Nc6 {[%emt 0:00:00]} 3. Bb5 {[%emt 0:01:30]} Nf6 {[%emt 0:00:00]} 4. O-O {[%emt 0:01:30]} Nxe4 {[%emt 0:00:00]} 5. Re1 {[%emt 0:00:30]} Nd6 {[%emt 0:00:00]} 6. Bxc6 {[%emt 0:06:30]} dxc6 {[%emt 0:00:30]} 7. Nxe5 {[%emt 0:00:30]} Be7 {[%emt 0:00:00]} 8. d4 {[%emt 0:00:30]} O-O {[%emt 0:00:00]} 9. Qf3 {[%emt 0:02:30]} Nf5 {[%emt 0:02:30]} 10. c3 {[%emt 0:03:30]} c5 {[%emt 0:00:30]} 11. d5 {[%emt 0:11:30]} Nh4 {[%emt 0:01:30]} 12. Qd1 {[%emt 0:00:30]} Bd6 {[%emt 0:00:30]} 13. Nc4 {[%emt 0:06:30]} Qf6 {[%emt 0:01:30]} 14. Qh5 {[%emt 0:04:30]} h6 {[%emt 0:06:30]} 15. Nxd6 {[%emt 0:02:30]} cxd6 {[%emt 0:00:00]} 16. Nd2 {[%emt 0:03:30]} Bf5 {[%emt 0:00:00]} 17. Nf3 {[%emt 0:10:30]} Rae8 {[%emt 0:02:30]} 18. Bd2 {[%emt 0:00:30]} Ng6 {[%emt 0:01:30]} 19. h3 {[%emt 0:14:30]} Be4 {[%emt 0:06:30]} 20. Nh2 {[%emt 0:00:00]} Nf4 {[%emt 0:01:30]} 21. Bxf4 {[%emt 0:00:00]} Qxf4 {[%emt 0:00:00]} 22. Re3 {[%emt 0:02:30]} b5 {[%emt 0:14:00]} 23. Qe2 {[%emt 0:02:30]} c4 {[%emt 0:01:30]} 24. Re1 {[%emt 0:00:30]} Bd3 {[%emt 0:00:00]} 25. Qg4 {[%emt 0:04:11]} Rxe3 {[%emt 0:00:00]} 26. Rxe3 {[%emt 0:00:00]} Qxg4 {[%emt 0:01:30]} 27. hxg4 {[%emt 0:00:00]} b4 {[%emt 0:02:30]} 28. Re7 {[%emt 0:07:04]} bxc3 {[%emt 0:02:30]} 29. bxc3 {[%emt 0:00:30]} Rb8 {[%emt 0:00:00]} 30. Nf3 {[%emt 0:02:16]} Rb1+ {[%emt 0:04:00]} 31. Kh2 {[%emt 0:00:30]} Rc1 {[%emt 0:00:30]} 32. Nd4 {[%emt 0:00:13]} Rxc3 {[%emt 0:01:30]} 33. Nb5 {[%emt 0:00:02]} Rc1 {[%emt 0:00:30]} 34. Nxd6 {[%emt 0:00:04]} c3 {[%emt 0:00:30]} 35. Re8+ {[%emt 0:02:29]} Kh7 {[%emt 0:00:30]} 36. Nxf7 {[%emt 0:00:00]} Rd1 {[%emt 0:00:30]} 37. Rh8+ {[%emt 0:03:18]} Kg6 {[%emt 0:00:30]} 38. Ne5+ {[%emt 0:00:30]} Kf6 {[%emt 0:00:00]} 39. Re8 {[%emt 0:01:23]} Bf5 {[%emt 0:05:00]} 40. gxf5 {[%emt 0:02:20]} c2 {[%emt 0:00:00]} 41. Nd3 {[%emt 0:03:35]} Rxd3 {[%emt 0:00:00]} 42. Rc8 {[%emt 0:00:30]} Rxd5 {[%emt 0:00:30]} 43. Rxc2 {[%emt 0:00:30]} Rxf5 {[%emt 0:00:00]} 1/2-1/2